[Event "SVK ECo-C Extraliga 2018-19"]
[Site "Slovakia"]
[Date "2019.04.12"]
[Round "9.8"]
[White "Gasa, Patrik"]
[Black "Banas, Kamil"]
[Result "1-0"]
[ECO "D37"]
[WhiteElo "2180"]
[BlackElo "2287"]
[Annotator "NA"]
[PlyCount "55"]
[EventDate "2018.11.10"]
[EventType "team-tourn"]
[EventCountry "SVK"]
[SourceTitle "playchess.com"]
[Source "ChessBase"]
[SourceQuality "1"]
[WhiteTeam "Osuske"]
[BlackTeam "Modra"]
[TimeControl "40/5400+30:1800+30"]

1. d4 {[%emt 0:00:00]} d5 {[%emt 0:00:00]} 2. c4 {[%emt 0:00:00]} e6 {[%emt 0:00:00]} 3. Nc3 {[%emt 0:01:57]} Nf6 {[%emt 0:00:44]} 4. Nf3 {[%emt 0:00:12]} Be7 {[%emt 0:00:04]} 5. Bf4 {[%emt 0:00:05]} O-O {[%emt 0:00:10]} 6. e3 {[%emt 0:00:15]} b6 {[%emt 0:00:12]} 7. cxd5 {[%emt 0:02:33]} Nxd5 {[%emt 0:03:46]} 8. Nxd5 {[%emt 0:02:42]} Qxd5 {[%emt 0:00:05]} 9. a3 {[%emt 0:11:06]} c5 {[%emt 0:04:16]} 10. dxc5 {[%emt 0:08:31]} Qxc5 {[%emt 0:01:50]} 11. Rc1 {[%emt 0:00:05]} Qa5+ {[%emt 0:00:33]} 12. Qd2 {[%emt 0:00:12]} Qxd2+ {[%emt 0:01:06]} 13. Nxd2 {[%emt 0:00:19]} Bf6 {[%emt 0:01:50]} 14. Bd3 {[%emt 0:02:48]} Bb7 {[%emt 0:02:13]} 15. Rc7 {[%emt 0:00:08]} Bxg2 {[%emt 0:09:13]} 16. Rg1 {[%emt 0:00:08]} Bc6 {[%emt 0:00:04]} 17. b4 {[%emt 0:20:55]} Bd8 {[%emt 0:06:57]} 18. Rc8 {[%emt 0:01:34]} Bf6 {[%emt 0:00:02]} 19. Bxh7+ {[%emt 0:00:12]} Kxh7 {[%emt 0:00:13]} 20. Rxf8 {[%emt 0:00:02]} Nd7 {[%emt 0:01:29]} 21. Rxa8 {[%emt 0:02:57]} Bxa8 {[%emt 0:00:02]} 22. Ke2 {[%emt 0:07:06]} Bb7 {[%emt 0:00:20]} 23. Rc1 {[%emt 0:03:08]} Ba6+ {[%emt 0:04:42]} 24. Kd1 {[%emt 0:00:51]} Bb5 {[%emt 0:07:30]} 25. Rc7 {[%emt 0:02:31]} a5 {[%emt 0:01:17]} 26. Ne4 {[%emt 0:10:12]} Bb2 {[%emt 0:01:47]} 27. Kc2 {[%emt 0:00:27]} Bxa3 {[%emt 0:01:07]} 28. Nc3 {[%emt 0:00:14]} 1-0

[Event "SVK ECo-C Extraliga 2018-19"]
[Site "Slovakia"]
[Date "2019.04.12"]
[Round "9.8"]
[White "Szucs, Vladimir"]
[Black "Viczencz, Peter"]
[Result "1/2-1/2"]
[ECO "A60"]
[WhiteElo "2155"]
[BlackElo "2060"]
[Annotator "NA"]
[PlyCount "123"]
[EventDate "2018.11.10"]
[EventType "team-tourn"]
[EventCountry "SVK"]
[SourceTitle "playchess.com"]
[Source "ChessBase"]
[SourceQuality "1"]
[WhiteTeam "Podhajska"]
[BlackTeam "Komarno"]
[TimeControl "40/5400+30:1800+30"]

1. d4 {[%emt 0:00:00]} Nf6 {[%emt 0:00:00]} 2. c4 {[%emt 0:00:03]} c5 {[%emt 0:00:00]} 3. d5 {[%emt 0:00:21]} e6 {[%emt 0:00:00]} 4. Nc3 {[%emt 0:00:32]} exd5 {[%emt 0:00:23]} 5. cxd5 {[%emt 0:00:09]} d6 {[%emt 0:00:42]} 6. Nf3 {[%emt 0:00:25]} a6 {[%emt 0:00:32]} 7. a4 {[%emt 0:00:37]} g6 {[%emt 0:01:08]} 8. Bf4 {[%emt 0:00:23]} Bg7 {[%emt 0:03:56]} 9. h3 {[%emt 0:00:57]} O-O {[%emt 0:05:39]} 10. e3 {[%emt 0:01:02]} Qc7 {[%emt 0:00:50]} 11. Nd2 {[%emt 0:00:52]} Re8 {[%emt 0:04:24]} 12. Nc4 {[%emt 0:07:41]} Bf8 {[%emt 0:00:48]} 13. Be2 {[%emt 0:01:47]} Nbd7 {[%emt 0:00:40]} 14. O-O {[%emt 0:04:31]} Rb8 {[%emt 0:01:06]} 15. a5 {[%emt 0:01:34]} b5 {[%emt 0:04:21]} 16. axb6 {[%emt 0:00:32]} Nxb6 {[%emt 0:00:04]} 17. Na5 {[%emt 0:06:37]} Ra8 {[%emt 0:01:36]} 18. Qd2 {[%emt 0:07:18]} Bb7 {[%emt 0:02:59]} 19. Nxb7 {[%emt 0:06:18]} Qxb7 {[%emt 0:00:06]} 20. Rfd1 {[%emt 0:00:23]} Nfd7 {[%emt 0:08:02]} 21. e4 {[%emt 0:10:25]} c4 {[%emt 0:06:45]} 22. Be3 {[%emt 0:03:00]} Rac8 {[%emt 0:15:06]} 23. Ra5 {[%emt 0:05:37]} Bg7 {[%emt 0:00:46]} 24. Qc2 {[%emt 0:02:00]} Nb8 {[%emt 0:02:57]} 25. Rda1 {[%emt 0:04:32]} Re7 {[%emt 0:04:00]} 26. Bg5 {[%emt 0:04:35]} Rec7 {[%emt 0:03:40]} 27. Bf4 {[%emt 0:01:43]} Rd8 {[%emt 0:03:56]} 28. R1a2 {[%emt 0:00:22]} Bd4 {[%emt 0:02:38]} 29. Qd2 {[%emt 0:04:46]} Bg7 {[%emt 0:01:08]} 30. Be3 {[%emt 0:02:19]} N6d7 {[%emt 0:03:24]} 31. R5a4 {[%emt 0:05:29]} Rdc8 {[%emt 0:02:04]} 32. Bg4 {[%emt 0:02:10]} h5 {[%emt 0:02:20]} 33. Bxd7 {[%emt 0:00:43]} Rxd7 {[%emt 0:00:05]} 34. Bd4 {[%emt 0:00:15]} Bxd4 {[%emt 0:06:43]} 35. Qxd4 {[%emt 0:00:04]} Rdc7 {[%emt 0:00:58]} 36. Nd1 {[%emt 0:04:38]} Rc5 {[%emt 0:08:23]} 37. R2a3 {[%emt 0:01:24]} Qb5 {[%emt 0:02:22]} 38. Qc3 {[%emt 0:04:37]} R5c7 {[%emt 0:01:25]} 39. Rb4 {[%emt 0:02:38]} Qe8 {[%emt 0:00:06]} 40. Qd4 {[%emt 0:01:36]} Nd7 {[%emt 0:03:17]} 41. Nc3 {[%emt 0:33:55]} Rb8 {[%emt 0:05:33]} 42. Rxc4 {[%emt 0:00:00]} Rxc4 {[%emt 0:00:40]} 43. Qxc4 {[%emt 0:00:00]} Rxb2 {[%emt 0:00:07]} 44. Rxa6 {[%emt 0:00:00]} Rc2 {[%emt 0:00:46]} 45. Qd4 {[%emt 0:00:00]} Rc1+ {[%emt 0:02:28]} 46. Kh2 {[%emt 0:00:00]} Qe5+ {[%emt 0:00:17]} 47. Qxe5 {[%emt 0:00:00]} Nxe5 {[%emt 0:00:03]} 48. Nb5 {[%emt 0:00:00]} Rc2 {[%emt 0:00:13]} 49. Nxd6 {[%emt 0:00:00]} Rxf2 {[%emt 0:00:10]} 50. Ra1 {[%emt 0:00:00]} h4 {[%emt 0:00:32]} 51. Rd1 {[%emt 0:00:00]} Re2 {[%emt 0:00:23]} 52. Kg1 {[%emt 0:00:00]} Kf8 {[%emt 0:00:31]} 53. Kf1 {[%emt 0:00:00]} Rb2 {[%emt 0:00:08]} 54. Rd4 {[%emt 0:00:14]} Ke7 {[%emt 0:03:57]} 55. Nc4 {[%emt 0:00:11]} Nxc4 {[%emt 0:00:56]} 56. Rxc4 {[%emt 0:00:03]} Kd6 {[%emt 0:00:07]} 57. Rc1 {[%emt 0:02:51]} Rd2 {[%emt 0:00:48]} 58. Re1 {[%emt 0:00:47]} Ke5 {[%emt 0:00:07]} 59. Re2 {[%emt 0:00:30]} Rd1+ {[%emt 0:00:05]} 60. Kf2 {[%emt 0:00:03]} f5 {[%emt 0:00:29]} 61. exf5+ {[%emt 0:00:32]} Kxf5 {[%emt 0:00:06]} 62. Re8 1/2-1/2

[Event "SVK ECo-C Extraliga 2018-19"]
[Site "Slovakia"]
[Date "2019.04.13"]
[Round "10.1"]
[White "Sipos, Istvan"]
[Black "Cernousek, Lukas"]
[Result "1/2-1/2"]
[ECO "B90"]
[WhiteElo "2472"]
[BlackElo "2438"]
[Annotator "ChessBase"]
[PlyCount "85"]
[EventDate "2018.11.10"]
[EventType "team-tourn"]
[EventCountry "SVK"]
[SourceTitle "playchess.com"]
[Source "ChessBase"]
[SourceQuality "1"]
[WhiteTeam "Komarno"]
[BlackTeam "Dubnica"]
[TimeControl "40/5400+30:1800+30"]

1. e4 {[%emt 0:00:00]} c5 {[%emt 0:00:00]} 2. Nf3 {[%emt 0:00:00]} d6 {[%emt 0:00:00]} 3. d4 {[%emt 0:00:00]} Nf6 {[%emt 0:00:00]} 4. Nc3 {[%emt 0:00:08]} cxd4 {[%emt 0:00:00]} 5. Nxd4 {[%emt 0:00:06]} a6 {[%emt 0:00:02]} 6. a3 {[%emt 0:00:39]} g6 {[%emt 0:03:52]} 7. Be2 {[%emt 0:10:40]} Bg7 {[%emt 0:04:03]} 8. O-O {[%emt 0:00:49]} Nbd7 {[%emt 0:06:28]} 9. Nb3 {[%emt 0:05:36]} b6 {[%emt 0:08:42]} 10. f4 {[%emt 0:04:52]} Bb7 {[%emt 0:00:58]} 11. Bf3 {[%emt 0:00:35]} Rc8 {[%emt 0:04:50]} 12. Qe1 {[%emt 0:01:44]} e5 {[%emt 0:03:41]} 13. f5 {[%emt 0:08:33]} gxf5 {[%emt 0:15:42]} 14. exf5 {[%emt 0:00:08]} Bxf3 {[%emt 0:00:04]} 15. Rxf3 {[%emt 0:00:09]} O-O {[%emt 0:03:17]} 16. Bg5 {[%emt 0:16:06]} h6 {[%emt 0:01:30]} 17. Bh4 {[%emt 0:15:42]} Qc7 {[%emt 0:00:18]} 18. Rd1 {[%emt 0:02:58]} e4 {[%emt 0:01:18]} 19. Nxe4 {[%emt 0:08:50]} Nxe4 {[%emt 0:01:22]} 20. Qxe4 {[%emt 0:00:08]} Qxc2 {[%emt 0:11:10]} 21. Qxc2 {[%emt 0:00:04]} Rxc2 {[%emt 0:00:08]} 22. Rxd6 {[%emt 0:01:54]} Ne5 {[%emt 0:05:43]} 23. Rf2 {[%emt 0:07:36]} Rfc8 {[%emt 0:04:07]} 24. Rd8+ {[%emt 0:07:20]} Rxd8 {[%emt 0:06:57]} 25. Bxd8 {[%emt 0:00:50]} Rxf2 {[%emt 0:07:17]} 26. Kxf2 {[%emt 0:00:02]} Nd3+ {[%emt 0:00:08]} 27. Ke2 {[%emt 0:00:20]} Nxb2 {[%emt 0:00:08]} 28. Bxb6 {[%emt 0:03:08]} Na4 {[%emt 0:02:48]} 29. Ba5 {[%emt 0:01:20]} Be5 {[%emt 0:02:23]} 30. h3 {[%emt 0:00:17]} Kg7 {[%emt 0:00:14]} 31. Kf3 {[%emt 0:01:09]} Kf6 {[%emt 0:02:44]} 32. Ke4 {[%emt 0:00:40]} Bd6 {[%emt 0:01:00]} 33. Bb4 {[%emt 0:01:57]} Bxb4 {[%emt 0:00:08]} 34. axb4 {[%emt 0:00:02]} Nc3+ {[%emt 0:00:07]} 35. Kd4 {[%emt 0:00:04]} Na2 {[%emt 0:00:06]} 36. Kc4 {[%emt 0:02:10]} Kxf5 {[%emt 0:00:02]} 37. Nc5 {[%emt 0:00:18]} Kf4 {[%emt 0:00:20]} 38. Nxa6 {[%emt 0:00:45]} Nxb4 {[%emt 0:00:05]} 39. Nxb4 {[%emt 0:00:27]} Kg3 {[%emt 0:00:05]} 40. Nd5 {[%emt 0:01:11]} Kxg2 {[%emt 0:00:06]} 41. h4 {[%emt 0:02:05]} Kg3 {[%emt 0:00:00]} 42. h5 {[%emt 0:00:07]} Kg4 {[%emt 0:00:00]} 43. Kd4 {[%emt 0:00:14]} 1/2-1/2

[Event "SVK ECo-C Extraliga 2018-19"]
[Site "Slovakia"]
[Date "2019.04.13"]
[Round "10.1"]
[White "Mazur, Stefan"]
[Black "Cvek, Robert"]
[Result "1-0"]
[ECO "C18"]
[WhiteElo "2435"]
[BlackElo "2524"]
[Annotator "ChessBase"]
[PlyCount "73"]
[EventDate "2018.11.10"]
[EventType "team-tourn"]
[EventCountry "SVK"]
[SourceTitle "playchess.com"]
[Source "ChessBase"]
[SourceQuality "1"]
[WhiteTeam "Liptovska"]
[BlackTeam "Osuske"]
[TimeControl "40/5400+30:1800+30"]

1. e4 {[%emt 0:00:00]} e6 {[%emt 0:00:00]} 2. d4 {[%emt 0:00:00]} d5 {[%emt 0:00:00]} 3. Nc3 {[%emt 0:00:00]} Bb4 {[%emt 0:00:22]} 4. e5 {[%emt 0:00:44]} c5 {[%emt 0:00:53]} 5. a3 {[%emt 0:00:11]} Bxc3+ {[%emt 0:00:18]} 6. bxc3 {[%emt 0:00:02]} Ne7 {[%emt 0:00:23]} 7. Qg4 {[%emt 0:00:12]} O-O {[%emt 0:01:13]} 8. Bd3 {[%emt 0:00:42]} Nbc6 {[%emt 0:00:37]} 9. Qh5 {[%emt 0:11:54]} Ng6 {[%emt 0:00:47]} 10. Nf3 {[%emt 0:00:35]} Qc7 {[%emt 0:00:58]} 11. Be3 {[%emt 0:01:11]} Nce7 {[%emt 0:00:14]} 12. Rb1 {[%emt 0:11:41]} Qa5 {[%emt 0:14:37]} 13. dxc5 {[%emt 0:13:46]} Qxc3+ {[%emt 0:14:57]} 14. Bd2 {[%emt 0:00:24]} Qxc5 {[%emt 0:00:09]} 15. Rb4 {[%emt 0:04:08]} f5 {[%emt 0:05:01]} 16. exf6 {[%emt 0:06:24]} Rxf6 {[%emt 0:01:08]} 17. O-O {[%emt 0:00:28]} a5 {[%emt 0:07:48]} 18. Rh4 {[%emt 0:14:17]} Nxh4 {[%emt 0:11:55]} 19. Qxh7+ {[%emt 0:02:55]} Kf8 {[%emt 0:00:27]} 20. Qh8+ {[%emt 0:00:10]} Ng8 {[%emt 0:00:11]} 21. Nxh4 {[%emt 0:00:11]} Bd7 {[%emt 0:04:32]} 22. Bg5 {[%emt 0:05:37]} Qd4 {[%emt 0:00:32]} 23. Bxf6 {[%emt 0:03:14]} Qxf6 {[%emt 0:00:06]} 24. Ng6+ {[%emt 0:02:01]} Kf7 {[%emt 0:00:08]} 25. Re1 {[%emt 0:01:27]} Rc8 {[%emt 0:09:29]} 26. Qh5 {[%emt 0:00:37]} Nh6 {[%emt 0:01:20]} 27. g4 {[%emt 0:03:27]} Qc3 {[%emt 0:06:18]} 28. Re3 {[%emt 0:03:16]} Qa1+ {[%emt 0:01:12]} 29. Kg2 {[%emt 0:00:10]} Bc6 {[%emt 0:08:37]} 30. Ne5+ {[%emt 0:01:53]} Ke7 {[%emt 0:00:31]} 31. Qg5+ {[%emt 0:00:53]} Kd6 {[%emt 0:00:38]} 32. Qxg7 {[%emt 0:00:37]} Rg8 {[%emt 0:04:50]} 33. Nf7+ {[%emt 0:04:20]} Nxf7 {[%emt 0:00:25]} 34. Rxe6+ {[%emt 0:02:38]} Kxe6 {[%emt 0:00:10]} 35. Bf5+ {[%emt 0:00:08]} Kd6 {[%emt 0:00:30]} 36. Qxa1 {[%emt 0:00:07]} d4+ {[%emt 0:00:42]} 37. Kg3 {[%emt 0:00:26]} 1-0

[Event "SVK ECo-C Extraliga 2018-19"]
[Site "Slovakia"]
[Date "2019.04.13"]
[Round "10.2"]
[White "Miton, Kamil"]
[Black "Gazik, Viktor"]
[Result "1/2-1/2"]
[ECO "D71"]
[WhiteElo "2593"]
[BlackElo "2511"]
[Annotator "ChessBase"]
[PlyCount "118"]
[EventDate "2018.11.10"]
[EventType "team-tourn"]
[EventCountry "SVK"]
[SourceTitle "playchess.com"]
[Source "ChessBase"]
[SourceQuality "1"]
[WhiteTeam "Dunajov"]
[BlackTeam "Podhajska"]
[TimeControl "40/5400+30:1800+30"]

1. d4 {[%emt 0:00:00]} Nf6 {[%emt 0:00:00]} 2. c4 {[%emt 0:00:00]} g6 {[%emt 0:00:00]} 3. g3 {[%emt 0:00:07]} c6 {[%emt 0:01:14]} 4. Bg2 {[%emt 0:00:47]} d5 {[%emt 0:00:07]} 5. Qa4 {[%emt 0:03:27]} Nbd7 {[%emt 0:09:20]} 6. cxd5 {[%emt 0:01:30]} Nb6 {[%emt 0:02:52]} 7. Qb3 {[%emt 0:07:06]} cxd5 {[%emt 0:01:20]} 8. Nc3 {[%emt 0:01:26]} Bg7 {[%emt 0:03:42]} 9. Nf3 {[%emt 0:00:30]} O-O {[%emt 0:09:09]} 10. O-O {[%emt 0:00:56]} Be6 {[%emt 0:11:19]} 11. a4 {[%emt 0:11:24]} Ne4 {[%emt 0:10:13]} 12. Ng5 {[%emt 0:17:12]} Nxg5 {[%emt 0:09:00]} 13. Bxg5 {[%emt 0:00:07]} h6 {[%emt 0:04:22]} 14. Bc1 {[%emt 0:01:58]} Qd7 {[%emt 0:00:40]} 15. a5 {[%emt 0:07:32]} Nc4 {[%emt 0:01:16]} 16. e4 {[%emt 0:01:39]} Rac8 {[%emt 0:10:37]} 17. exd5 {[%emt 0:04:21]} Bf5 {[%emt 0:01:51]} 18. Re1 {[%emt 0:03:14]} g5 {[%emt 0:01:50]} 19. Ra4 {[%emt 0:17:18]} Qc7 {[%emt 0:00:04]} 20. a6 {[%emt 0:06:43]} bxa6 {[%emt 0:02:07]} 21. Rxa6 {[%emt 0:00:27]} Bxd4 {[%emt 0:04:33]} 22. Rxh6 {[%emt 0:03:48]} Qc5 {[%emt 0:02:20]} 23. Rf1 {[%emt 0:01:28]} Ne5 {[%emt 0:02:20]} 24. Bxg5 {[%emt 0:03:48]} Ng4 {[%emt 0:06:10]} 25. Rh4 {[%emt 0:00:32]} Nxf2 {[%emt 0:02:35]} 26. Rxd4 {[%emt 0:00:58]} Nh3+ {[%emt 0:00:17]} 27. Bxh3 {[%emt 0:03:44]} Qxd4+ {[%emt 0:00:04]} 28. Kg2 {[%emt 0:00:13]} Rxc3 {[%emt 0:00:09]} 29. Qxc3 {[%emt 0:01:04]} Qxd5+ {[%emt 0:00:33]} 30. Rf3 {[%emt 0:00:50]} Rc8 {[%emt 0:00:34]} 31. Bxf5 {[%emt 0:00:38]} Rxc3 {[%emt 0:00:04]} 32. bxc3 {[%emt 0:00:01]} e6 {[%emt 0:00:09]} 33. c4 {[%emt 0:00:40]} Qa5 {[%emt 0:00:33]} 34. Bxe6 {[%emt 0:00:47]} fxe6 {[%emt 0:00:03]} 35. Bf6 {[%emt 0:00:33]} Qa2+ {[%emt 0:00:09]} 36. Kh3 {[%emt 0:00:37]} Qxc4 {[%emt 0:00:04]} 37. g4 {[%emt 0:00:03]} Qe2 {[%emt 0:02:17]} 38. Kg3 {[%emt 0:00:13]} e5 {[%emt 0:00:36]} 39. g5 {[%emt 0:01:08]} e4 {[%emt 0:00:14]} 40. Rc3 {[%emt 0:00:29]} e3 {[%emt 0:01:25]} 41. Rc8+ {[%emt 0:09:12]} Kf7 {[%emt 0:05:06]} 42. Rc7+ {[%emt 0:00:08]} Ke6 {[%emt 0:09:18]} 43. Re7+ {[%emt 0:01:42]} Kd6 {[%emt 0:02:40]} 44. Re4 {[%emt 0:04:20]} Qe1+ {[%emt 0:07:14]} 45. Kf3 {[%emt 0:00:23]} Qf2+ {[%emt 0:00:08]} 46. Kg4 {[%emt 0:00:06]} e2 {[%emt 0:00:58]} 47. Be5+ {[%emt 0:03:06]} Kd7 {[%emt 0:09:17]} 48. Bg3 {[%emt 0:00:45]} Qf1 {[%emt 0:01:18]} 49. Re5 {[%emt 0:03:20]} Qd1 {[%emt 0:01:32]} 50. Kf5 {[%emt 0:02:59]} Qd3+ {[%emt 0:00:02]} 51. Kf6 {[%emt 0:00:57]} Qf3+ {[%emt 0:00:02]} 52. Kg7 {[%emt 0:00:33]} a5 {[%emt 0:00:04]} 53. g6 {[%emt 0:00:32]} a4 {[%emt 0:01:41]} 54. Kh7 {[%emt 0:02:38]} a3 {[%emt 0:00:47]} 55. g7 {[%emt 0:02:30]} Qf7 {[%emt 0:00:02]} 56. Kh8 {[%emt 0:01:04]} a2 {[%emt 0:00:52]} 57. g8=Q {[%emt 0:01:02]} Qxg8+ {[%emt 0:00:25]} 58. Kxg8 {[%emt 0:00:05]} a1=Q {[%emt 0:00:06]} 59. Rxe2 {[%emt 0:00:21]} Qf6 {[%emt 0:00:27]} 1/2-1/2

[Event "SVK ECo-C Extraliga 2018-19"]
[Site "Slovakia"]
[Date "2019.04.13"]
[Round "10.2"]
[White "Ponizil, Cyril"]
[Black "Jakab, Bela"]
[Result "1-0"]
[ECO "C50"]
[WhiteElo "2501"]
[BlackElo "2324"]
[Annotator "ChessBase"]
[PlyCount "95"]
[EventDate "2018.11.10"]
[EventType "team-tourn"]
[EventCountry "SVK"]
[SourceTitle "playchess.com"]
[Source "ChessBase"]
[SourceQuality "1"]
[WhiteTeam "Dubnica"]
[BlackTeam "Komarno"]
[TimeControl "40/5400+30:1800+30"]

1. e4 {[%emt 0:00:00]} e5 {[%emt 0:00:00]} 2. Nf3 {[%emt 0:00:00]} Nc6 {[%emt 0:00:00]} 3. Bc4 {[%emt 0:00:16]} Bc5 {[%emt 0:00:02]} 4. O-O {[%emt 0:00:09]} Nf6 {[%emt 0:00:54]} 5. d3 {[%emt 0:00:05]} O-O {[%emt 0:00:25]} 6. a4 {[%emt 0:01:14]} a5 {[%emt 0:04:01]} 7. Nbd2 {[%emt 0:01:25]} d6 {[%emt 0:00:33]} 8. c3 {[%emt 0:00:06]} Ba7 {[%emt 0:01:14]} 9. Bb3 {[%emt 0:01:20]} Ne7 {[%emt 0:06:22]} 10. Re1 {[%emt 0:00:25]} Ng6 {[%emt 0:00:28]} 11. Nf1 {[%emt 0:01:20]} c6 {[%emt 0:05:08]} 12. Ng3 {[%emt 0:02:19]} Re8 {[%emt 0:00:39]} 13. h3 {[%emt 0:01:14]} Be6 {[%emt 0:03:52]} 14. d4 {[%emt 0:01:19]} h6 {[%emt 0:07:31]} 15. Bc2 {[%emt 0:01:47]} Qc7 {[%emt 0:00:48]} 16. Be3 {[%emt 0:01:34]} b5 {[%emt 0:05:52]} 17. Qd2 {[%emt 0:05:50]} Rad8 {[%emt 0:05:12]} 18. Qc1 {[%emt 0:03:17]} b4 {[%emt 0:03:10]} 19. Bd3 {[%emt 0:01:36]} d5 {[%emt 0:10:43]} 20. dxe5 {[%emt 0:05:17]} Bxe3 {[%emt 0:00:41]} 21. Qxe3 {[%emt 0:00:11]} Nxe5 {[%emt 0:00:38]} 22. Nxe5 {[%emt 0:00:14]} Qxe5 {[%emt 0:00:06]} 23. f4 {[%emt 0:01:02]} d4 {[%emt 0:13:12]} 24. Qf3 {[%emt 0:00:29]} Qc5 {[%emt 0:00:16]} 25. c4 {[%emt 0:00:33]} Nd7 {[%emt 0:03:19]} 26. e5 {[%emt 0:01:27]} Bxc4 {[%emt 0:04:30]} 27. Rac1 {[%emt 0:05:26]} Bd5 {[%emt 0:00:11]} 28. Qg4 {[%emt 0:03:23]} Qf8 {[%emt 0:00:50]} 29. Nf5 {[%emt 0:00:24]} Re6 {[%emt 0:00:54]} 30. Nxd4 {[%emt 0:00:38]} Nc5 {[%emt 0:04:21]} 31. Bc2 {[%emt 0:04:01]} b3 {[%emt 0:00:32]} 32. Bb1 {[%emt 0:00:05]} Ree8 {[%emt 0:01:50]} 33. f5 {[%emt 0:00:52]} h5 {[%emt 0:04:17]} 34. Qxh5 {[%emt 0:03:56]} Be4 {[%emt 0:00:28]} 35. Nf3 {[%emt 0:07:33]} Bxf3 {[%emt 0:02:47]} 36. Qxf3 {[%emt 0:00:16]} Rd5 {[%emt 0:01:03]} 37. Qg3 {[%emt 0:03:00]} Nxa4 {[%emt 0:02:59]} 38. f6 {[%emt 0:00:34]} Nxb2 {[%emt 0:00:38]} 39. Re4 {[%emt 0:01:47]} g6 {[%emt 0:00:38]} 40. Rh4 {[%emt 0:07:18]} Nd3 {[%emt 0:05:52]} 41. Bxd3 {[%emt 0:31:14]} b2 {[%emt 0:30:53]} 42. Rf1 {[%emt 0:02:17]} Qc5+ {[%emt 0:01:41]} 43. Kh1 {[%emt 0:01:21]} Rdxe5 {[%emt 0:00:00]} 44. Bxg6 {[%emt 0:00:00]} Rg5 {[%emt 0:00:00]} 45. Rh8+ {[%emt 0:00:00]} Kxh8 {[%emt 0:00:00]} 46. Qh4+ {[%emt 0:00:00]} Rh5 {[%emt 0:00:00]} 47. Bxh5 {[%emt 0:00:00]} Qb4 {[%emt 0:00:00]} 48. Bg4+ {[%emt 0:00:00]} 1-0

[Event "SVK ECo-C Extraliga 2018-19"]
[Site "Slovakia"]
[Date "2019.04.13"]
[Round "10.2"]
[White "Vykouk, Jan"]
[Black "Neuman, Petr"]
[Result "1/2-1/2"]
[ECO "C65"]
[WhiteElo "2441"]
[BlackElo "2397"]
[Annotator "NA"]
[PlyCount "108"]
[EventDate "2018.11.10"]
[EventType "team-tourn"]
[EventCountry "SVK"]
[SourceTitle "playchess.com"]
[Source "ChessBase"]
[SourceQuality "1"]
[WhiteTeam "Osuske"]
[BlackTeam "Liptovska"]
[TimeControl "40/5400+30:1800+30"]

1. e4 {[%emt 0:00:00]} e5 {[%emt 0:00:00]} 2. Nf3 {[%emt 0:00:00]} Nc6 {[%emt 0:00:18]} 3. Bb5 {[%emt 0:00:13]} Nf6 {[%emt 0:00:25]} 4. d3 {[%emt 0:00:16]} d6 {[%emt 0:00:21]} 5. O-O {[%emt 0:00:20]} Bd7 {[%emt 0:00:07] C66: Ruy Lopez: Steinitz Defence} 6. c4 {[%emt 0:03:54]} g6 {[%emt 0:00:29]} 7. Nc3 {[%emt 0:00:06]} Bg7 {[%emt 0:00:05]} 8. Nd5 {[%emt 0:00:54]} Nb8 $146 {[%emt 0:14:26]} ({Predecessor:} 8... a6 9. Ba4 Nxd5 10. cxd5 Ne7 11. Bg5 b5 12. Bb3 h6 13. Bxe7 Qxe7 {1-0 (42) Anand,V (2786)-Kramnik,V (2811) Zuerich 2017}) 9. Bxd7+ {[%emt 0:02:56]} Nbxd7 {[%emt 0:02:02]} 10. Be3 {[%emt 0:01:26]} O-O {[%emt 0:03:36]} 11. Qb3 {[%emt 0:00:56]} Qb8 {[%emt 0:05:41]} 12. Rac1 {[%emt 0:02:40]} Ng4 {[%emt 0:02:26]} 13. Bg5 {[%emt 0:04:06]} c6 {[%emt 0:06:42]} 14. h3 {[%emt 0:07:46]} Nh6 {[%emt 0:02:33]} 15. Nc3 {[%emt 0:02:21]} Nc5 {[%emt 0:06:06]} 16. Qa3 {[%emt 0:01:19]} f6 {[%emt 0:02:27]} 17. Be3 {[%emt 0:00:19]} Nxd3 {[%emt 0:03:03]} 18. Rcd1 {[%emt 0:00:10]} Nc5 {[%emt 0:00:05]} 19. Bxc5 {[%emt 0:01:28]} dxc5 {[%emt 0:00:39]} 20. Qxc5 {[%emt 0:00:05]} Rf7 {[%emt 0:01:06]} 21. Rd3 {[%emt 0:01:04]} Bf8 {[%emt 0:00:54]} 22. Qe3 {[%emt 0:00:07]} Qe8 {[%emt 0:05:39]} 23. Rfd1 {[%emt 0:00:20]} Rc7 {[%emt 0:01:38]} 24. c5 {[%emt 0:03:59]} Nf7 {[%emt 0:01:00]} 25. Nd2 {[%emt 0:02:23]} Rd8 {[%emt 0:02:01]} 26. Nc4 {[%emt 0:00:35]} Rcd7 {[%emt 0:00:23]} 27. Rxd7 {[%emt 0:05:07]} Rxd7 {[%emt 0:00:14]} 28. b4 {[%emt 0:01:20]} Qd8 {[%emt 0:02:29]} 29. Rxd7 {[%emt 0:03:59]} Qxd7 {[%emt 0:01:18]} 30. Qd2 {[%emt 0:00:07]} Qxd2 {[%emt 0:01:57]} 31. Nxd2 {[%emt 0:00:05]} Nd8 {[%emt 0:05:24]} 32. Nc4 {[%emt 0:01:53]} Kf7 {[%emt 0:02:10]} 33. Kf1 {[%emt 0:05:52]} Ke6 {[%emt 0:01:12]} 34. Ke2 {[%emt 0:00:06]} Kd7 {[%emt 0:01:03]} 35. Kd3 {[%emt 0:00:10]} Kc7 {[%emt 0:03:41]} 36. g3 {[%emt 0:01:03]} Ne6 {[%emt 0:00:33]} 37. Ne2 {[%emt 0:00:17]} b6 {[%emt 0:01:02]} 38. cxb6+ {[%emt 0:00:08]} axb6 {[%emt 0:00:08]} 39. a3 {[%emt 0:00:07]} b5 {[%emt 0:00:38]} 40. Ne3 {[%emt 0:00:25]} Kd6 {[%emt 0:01:27]} 41. f4 {[%emt 0:35:42]} exf4 $15 {[%emt 0:31:28]} 42. gxf4 {[%emt 0:00:30]} c5 {[%emt 0:07:08]} 43. Nd5 {[%emt 0:03:35]} f5 {[%emt 0:03:27]} 44. Nec3 {[%emt 0:01:38]} Kc6 {[%emt 0:06:22]} 45. e5 {[%emt 0:08:27]} cxb4 {[%emt 0:02:22]} 46. axb4 {[%emt 0:00:12]} h6 {[%emt 0:00:59]} 47. h4 {[%emt 0:01:37]} g5 {[%emt 0:01:19]} 48. fxg5 {[%emt 0:01:02]} hxg5 {[%emt 0:00:05]} 49. hxg5 {[%emt 0:01:21]} Nxg5 {[%emt 0:00:06]} 50. Ne3 {[%emt 0:00:55]} Bxb4 {[%emt 0:00:41]} 51. Nxf5 {[%emt 0:00:06]} Bxc3 {[%emt 0:00:15]} 52. Kxc3 {[%emt 0:00:06]} Kd5 {[%emt 0:00:04]} 53. Kb4 {[%emt 0:00:11]} Kxe5 {[%emt 0:00:06]} 54. Kxb5 {[%emt 0:00:13]} Kxf5 1/2-1/2